lending/lending_fUSD_20241115
["ID","MTS","AMOUNT","RATE_DAILY","PERIOD"]
[342317869,1731701513539,-579.09,9.786e-05,2]
[342317870,1731701513840,-500.0,9.786e-05,2]
[342317871,1731701513851,-579.09,9.786e-05,2]
[342317872,1731701513861,-579.09,9.786e-05,2]
[342317873,1731701513870,-579.09,9.786e-05,2]
[342317874,1731701513880,-579.09,9.786e-05,2]
[342317875,1731701513893,-500.0,9.786e-05,2]
[342317876,1731701513902,-500.0,9.786e-05,2]
[342317877,1731701513912,-500.0,9.786e-05,2]
[342317878,1731701513922,-500.0,9.786e-05,2]
[342317879,1731701513933,-616.84594443,9.786e-05,2]
[342317880,1731701513943,-985.43,9.786e-05,2]
[342317881,1731701513953,-985.43,9.786e-05,2]
[342317882,1731701513963,-985.43,9.786e-05,2]
[342317883,1731701513972,-673.23,9.786e-05,2]
[342317884,1731701513982,-985.43,9.786e-05,2]
[342317885,1731701513992,-673.23,9.786e-05,2]
[342317886,1731701514002,-985.43,9.786e-05,2]
[342317887,1731701514012,-673.23,9.786e-05,2]
[342317888,1731701514022,-985.43,9.786e-05,2]
[342317889,1731701514031,-673.23,9.786e-05,2]
[342317890,1731701514041,-673.23,9.786e-05,2]
[342317891,1731701514050,-673.23,9.786e-05,2]
[342317892,1731701514060,-696.76,9.787e-05,2]
[342317893,1731701514070,-696.76,9.787e-05,2]
[342317894,1731701514080,-696.76,9.787e-05,2]
[342317895,1731701514090,-696.76,9.787e-05,2]
[342317896,1731701514100,-696.77912013,9.787e-05,2]
[342317897,1731701514111,-550.98,9.787e-05,2]
[342317898,1731701514121,-550.98,9.787e-05,2]
[342317899,1731701514131,-550.98,9.787e-05,2]
[342317900,1731701514148,-550.98,9.787e-05,2]
[342317901,1731701514158,-551.1016825,9.787e-05,2]
[342317902,1731701514168,-537.64,9.787e-05,2]
[342317903,1731701514177,-537.64,9.787e-05,2]
[342317904,1731701514187,-537.64,9.787e-05,2]
[342317905,1731701514197,-537.64,9.787e-05,2]
[342317906,1731701514207,-537.64,9.787e-05,2]
[342317907,1731701514216,-537.64,9.787e-05,2]
[342317908,1731701514228,-537.64,9.787e-05,2]
[342317909,1731701514238,-537.64,9.787e-05,2]
[342317910,1731701514247,-537.64,9.787e-05,2]
[342317911,1731701514257,-537.64,9.787e-05,2]
[342317912,1731701514267,-537.65938313,9.787e-05,2]
[342317913,1731701514277,-500.0,9.787e-05,2]
[342317914,1731701514287,-500.0,9.787e-05,2]
[342317915,1731701514296,-640.65,9.787e-05,2]
[342317916,1731701514306,-675.35,9.787e-05,2]
[342317917,1731701514316,-675.35,9.787e-05,2]
[342317918,1731701514326,-675.35,9.787e-05,2]
[342317919,1731701514336,-547.19,9.787e-05,2]
[342317920,1731701514347,-675.35,9.787e-05,2]
[342317921,1731701514356,-675.35,9.787e-05,2]
[342317922,1731701514366,-547.19,9.787e-05,2]
[342317923,1731701514375,-675.35,9.787e-05,2]
[342317924,1731701514385,-547.19,9.787e-05,2]
[342317925,1731701514401,-675.35,9.787e-05,2]
[342317926,1731701514411,-547.19,9.787e-05,2]
[342317927,1731701514421,-675.35,9.787e-05,2]
[342317928,1731701514431,-547.42438136,9.787e-05,2]
[342317929,1731701514440,-675.35,9.787e-05,2]
[342317930,1731701514450,-675.35,9.787e-05,2]
[342317931,1731701514459,-675.4123042,9.787e-05,2]
[342317932,1731701514469,-864.69,9.787e-05,2]
[342317933,1731701514478,-864.69,9.787e-05,2]
[342317934,1731701514487,-864.69,9.787e-05,2]
[342317935,1731701514498,-864.69,9.787e-05,2]
[342317936,1731701514507,-864.69,9.787e-05,2]
[342317937,1731701514517,-864.69,9.787e-05,2]
[342317938,1731701514527,-864.69,9.787e-05,2]
[342317939,1731701514536,-864.69,9.787e-05,2]
[342317940,1731701514546,-864.69,9.787e-05,2]
[342317941,1731701514556,-864.69,9.787e-05,2]
[342317942,1731701514565,-864.83605848,9.787e-05,2]
[342317943,1731701514575,-558.71478048,9.787e-05,2]
[342317944,1731701514585,-500.0,9.787e-05,2]
[342317945,1731701514594,-500.0,9.787e-05,2]
[342317946,1731701514604,-500.0,9.787e-05,2]
[342317947,1731701514614,-500.0,9.787e-05,2]
[342317948,1731701514624,-428.37774881,9.787e-05,2]
[342317949,1731701514634,-2118.62,9.787e-05,2]
[342317950,1731701514648,-2118.62,9.787e-05,2]
[342317951,1731701514658,-2118.62,9.787e-05,2]
[342317952,1731701514667,-2118.62,9.787e-05,2]
[342317953,1731701514677,-2118.62,9.787e-05,2]
[342317954,1731701514687,-2118.62,9.787e-05,2]
[342317955,1731701514697,-2118.62,9.787e-05,2]
[342317956,1731701514707,-2118.62,9.787e-05,2]
[342317957,1731701514716,-2118.62,9.787e-05,2]
[342317958,1731701514726,-2118.62,9.787e-05,2]
[342317959,1731701514736,-2118.83636915,9.787e-05,2]
[342317960,1731701514746,-551.12,9.787e-05,2]
[342317961,1731701514756,-551.12,9.787e-05,2]
[342317962,1731701514766,-551.12,9.787e-05,2]
[342317963,1731701514776,-602.66,9.787e-05,2]
[342317964,1731701514786,-551.12,9.787e-05,2]
[342317965,1731701514797,-602.66,9.787e-05,2]
[342317966,1731701514806,-551.12,9.787e-05,2]
[342317967,1731701514816,-551.12,9.787e-05,2]
[342317968,1731701514825,-602.66,9.787e-05,2]
[342317969,1731701514834,-551.12,9.787e-05,2]
[342317970,1731701514844,-602.66,9.787e-05,2]
[342317971,1731701514854,-551.12,9.787e-05,2]
[342317972,1731701514864,-602.89132719,9.787e-05,2]
[342317973,1731701514874,-551.12,9.787e-05,2]
[342317974,1731701514884,-551.12,9.787e-05,2]
[342317975,1731701514901,-551.22874995,9.787e-05,2]
[342317976,1731701514910,-567.51,9.787e-05,2]
[342317977,1731701514920,-567.51,9.787e-05,2]
[342317978,1731701514931,-567.51,9.787e-05,2]
[342317979,1731701514941,-567.51,9.787e-05,2]
[342317980,1731701514950,-567.52810445,9.787e-05,2]
[342317981,1731701514960,-1119.89,9.787e-05,2]
[342317982,1731701514970,-1119.89,9.787e-05,2]
[342317983,1731701514979,-1119.89,9.787e-05,2]
[342317984,1731701514989,-1119.89,9.787e-05,2]
[342317985,1731701514999,-1119.89,9.787e-05,2]
[342317986,1731701515009,-1119.89,9.787e-05,2]
[342317987,1731701515019,-1119.89,9.787e-05,2]
[342317988,1731701515028,-1119.89,9.787e-05,2]
[342317989,1731701515038,-524.12,9.787e-05,2]
[342317990,1731701515048,-1119.89,9.787e-05,2]
[342317991,1731701515058,-524.12,9.787e-05,2]
[342317992,1731701515067,-1119.89,9.787e-05,2]
[342317993,1731701515077,-524.12,9.787e-05,2]
[342317994,1731701515086,-1119.92076292,9.787e-05,2]
[342317995,1731701515096,-524.12,9.787e-05,2]
[342317996,1731701515106,-524.22433581,9.787e-05,2]
[342317997,1731701515116,-467.28404978,9.787e-05,2]
[342317998,1731701515126,-2045.12,9.787e-05,2]
[342317999,1731701515140,-2045.12,9.787e-05,2]
[342318000,1731701515156,-2045.12,9.787e-05,2]
[342318001,1731701515167,-2045.12,9.787e-05,2]
[342318002,1731701515177,-2045.12,9.787e-05,2]
[342318003,1731701515187,-2045.12,9.787e-05,2]
[342318004,1731701515197,-2045.12,9.787e-05,2]
[342318005,1731701515207,-2045.12,9.787e-05,2]
[342318006,1731701515219,-2045.12,9.787e-05,2]
[342318007,1731701515230,-2045.12,9.787e-05,2]
[342318008,1731701515240,-500.0,9.787e-05,2]
[342318009,1731701515250,-2045.14446901,9.787e-05,2]
[342318010,1731701515261,-500.0,9.787e-05,2]
[342318011,1731701515271,-204.15753247,9.787e-05,2]
[342318012,1731701515281,-1143.06,9.787e-05,2]
[342318013,1731701515290,-1143.06,9.787e-05,2]
[342318014,1731701515300,-1143.06,9.787e-05,2]
[342318015,1731701515311,-1143.06,9.787e-05,2]
[342318016,1731701515320,-1143.06,9.787e-05,2]
[342318017,1731701515331,-1143.06,9.787e-05,2]
[342318018,1731701515340,-1143.06,9.787e-05,2]
[342318019,1731701515350,-1143.06,9.787e-05,2]
[342318020,1731701515360,-1143.06,9.787e-05,2]
[342318021,1731701515370,-1143.06,9.787e-05,2]
[342318022,1731701515379,-1143.11465451,9.787e-05,2]
[342318023,1731701515392,-618.93,9.787e-05,2]
[342318024,1731701515402,-618.93,9.787e-05,2]
[342318025,1731701515412,-618.93,9.787e-05,2]
[342318026,1731701515422,-618.93,9.787e-05,2]
[342318027,1731701515432,-618.93,9.787e-05,2]
[342318028,1731701515442,-618.93,9.787e-05,2]
[342318029,1731701515451,-618.93,9.787e-05,2]
[342318030,1731701515461,-514.25491458,9.787e-05,2]
[342318031,1731701515471,-618.93,9.787e-05,2]
[342318032,1731701515481,-618.93,9.787e-05,2]
[342318033,1731701515490,-618.93,9.787e-05,2]
[342318034,1731701515499,-619.03733567,9.787e-05,2]
[342318035,1731701515510,-678.79,9.787e-05,2]
[342318036,1731701515520,-678.79,9.787e-05,2]
[342318037,1731701515530,-678.79,9.787e-05,2]
[342318038,1731701515539,-678.79,9.787e-05,2]
[342318039,1731701515550,-678.99608019,9.787e-05,2]
[342318040,1731701515560,-2084.092,9.787e-05,2]
[342318041,1731701515570,-1073.34,9.787e-05,2]
[342318042,1731701515580,-1073.34,9.787e-05,2]
[342318043,1731701515590,-1073.34,9.787e-05,2]
[342318044,1731701515600,-1073.34,9.787e-05,2]
[342318045,1731701515609,-1073.34,9.787e-05,2]
[342318046,1731701515619,-1073.34,9.787e-05,2]
[342318047,1731701515629,-1073.34,9.787e-05,2]
[342318048,1731701515641,-1073.34,9.787e-05,2]
[342318049,1731701515651,-1073.34,9.787e-05,2]
[342318050,1731701515661,-1073.34,9.787e-05,2]
[342318051,1731701515671,-1073.41268767,9.787e-05,2]
[342318052,1731701515682,-686.39,9.787e-05,2]
[342318053,1731701515692,-500.0,9.787e-05,2]
[342318054,1731701515702,-686.39,9.787e-05,2]
[342318055,1731701515713,-500.0,9.787e-05,2]
[342318056,1731701515722,-686.39,9.787e-05,2]
[342318057,1731701515733,-686.39,9.787e-05,2]
[342318058,1731701515742,-500.0,9.787e-05,2]
[342318059,1731701515752,-500.0,9.787e-05,2]
[342318060,1731701515761,-686.43212714,9.787e-05,2]
[342318061,1731701515771,-500.0,9.787e-05,2]
[342318062,1731701515781,-500.0,9.787e-05,2]
[342318063,1731701515791,-500.0,9.787e-05,2]
[342318064,1731701515800,-500.0,9.787e-05,2]
[342318065,1731701515810,-500.0,9.787e-05,2]
[342318066,1731701515820,-367.72966691,9.787e-05,2]
[342318067,1731701515830,-2071.04,9.787e-05,2]
[342318068,1731701515840,-2071.04,9.787e-05,2]
[342318069,1731701515850,-2071.04,9.787e-05,2]
[342318070,1731701515859,-2071.04,9.787e-05,2]
[342318071,1731701515869,-2071.04,9.787e-05,2]
[342318072,1731701515879,-2071.04,9.787e-05,2]
[342318073,1731701515890,-2071.04,9.787e-05,2]
[342318074,1731701515900,-2071.04,9.787e-05,2]
[342318075,1731701515910,-2071.04,9.787e-05,2]
[342318076,1731701515920,-2071.04,9.787e-05,2]
[342318077,1731701515929,-2071.25632946,9.787e-05,2]
[342318078,1731701515939,-661.7,9.787e-05,2]
[342318079,1731701515949,-661.7,9.787e-05,2]
[342318080,1731701515959,-661.7,9.787e-05,2]
[342318081,1731701515968,-661.7,9.787e-05,2]
[342318082,1731701515977,-661.7,9.787e-05,2]
[342318083,1731701515986,-661.7,9.787e-05,2]
[342318084,1731701515995,-661.7,9.787e-05,2]
[342318085,1731701516006,-661.7,9.787e-05,2]
[342318086,1731701516015,-661.7,9.787e-05,2]
[342318087,1731701516025,-661.7,9.787e-05,2]
[342318088,1731701516035,-661.89779102,9.787e-05,2]
[342318089,1731701516045,-698.04,9.787e-05,2]
[342318090,1731701516055,-698.04,9.787e-05,2]
[342318091,1731701516067,-698.04,9.787e-05,2]
[342318092,1731701516077,-698.04,9.787e-05,2]
[342318093,1731701516086,-698.04,9.787e-05,2]
[342318094,1731701516096,-698.04,9.787e-05,2]
[342318095,1731701516106,-698.04,9.787e-05,2]
[342318096,1731701516117,-698.04,9.787e-05,2]
[342318097,1731701516127,-698.04,9.787e-05,2]
[342318098,1731701516140,-698.04,9.787e-05,2]
[342318099,1731701516154,-698.15012676,9.787e-05,2]
[342318100,1731701516164,-597.92,9.787e-05,2]
[342318101,1731701516175,-597.92,9.787e-05,2]
[342318102,1731701516185,-597.92,9.787e-05,2]
[342318103,1731701516197,-796.49,9.787e-05,2]
[342318104,1731701516208,-597.92,9.787e-05,2]
[342318105,1731701516219,-500.0,9.787e-05,2]
[342318106,1731701516229,-796.49,9.787e-05,2]
[342318107,1731701516240,-212.91937632,9.787e-05,2]
[342318108,1731701516250,-597.92,9.787e-05,2]
[342318109,1731701516259,-796.49,9.787e-05,2]
[342318110,1731701516269,-597.92,9.787e-05,2]
[342318111,1731701516347,-597.92,9.787e-05,2]
[342318112,1731701516363,-796.49,9.787e-05,2]
[342318113,1731701516374,-597.92,9.787e-05,2]
[342318114,1731701516384,-796.57261712,9.787e-05,2]
[342318115,1731701516397,-597.92,9.787e-05,2]
[342318116,1731701516407,-597.92,9.787e-05,2]
[342318117,1731701516417,-597.95888329,9.787e-05,2]
[342318118,1731701516427,-1110.32,9.787e-05,2]
[342318119,1731701516437,-1110.32,9.787e-05,2]
[342318120,1731701516447,-1110.32,9.787e-05,2]
[342318121,1731701516456,-1110.32,9.787e-05,2]
[342318122,1731701516466,-1110.52721181,9.787e-05,2]
[342318123,1731701516476,-500.0,9.787e-05,2]
[342318124,1731701516486,-500.0,9.787e-05,2]
[342318125,1731701516495,-500.0,9.787e-05,2]
[342318126,1731701516507,-500.0,9.787e-05,2]
[342318127,1731701516516,-500.0,9.787e-05,2]
[342318128,1731701516526,-500.0,9.787e-05,2]
[342318129,1731701516535,-500.0,9.787e-05,2]
[342318130,1731701516545,-558.88831198,9.787e-05,2]
[342318131,1731701516556,-500.0,9.787e-05,2]
[342318132,1731701516565,-500.0,9.787e-05,2]
[342318133,1731701516575,-500.0,9.787e-05,2]
[342318134,1731701516585,-460.52915958,9.787e-05,2]
[342318135,1731701516595,-500.0,9.787e-05,2]
[342318136,1731701516604,-500.0,9.787e-05,2]
[342318137,1731701516614,-500.0,9.787e-05,2]
[342318138,1731701516624,-500.0,9.787e-05,2]
[342318139,1731701516634,-202.83350778,9.787e-05,2]
[342318140,1731701516647,-500.0,9.787e-05,2]
[342318141,1731701516658,-500.0,9.787e-05,2]
[342318142,1731701516667,-438.95450983,9.787e-05,2]
[342318143,1731701516678,-150.0,9.787e-05,2]
[342318144,1731701516688,-150.0,9.787e-05,2]
[342318145,1731701516699,-150.0,9.787e-05,2]
[342318146,1731701516708,-150.0,9.787e-05,2]
[342318147,1731701516717,-1309.31,9.787e-05,2]
[342318148,1731701516727,-150.0,9.787e-05,2]
[342318149,1731701516736,-150.0,9.787e-05,2]
[342318150,1731701516746,-1309.31,9.787e-05,2]
[342318151,1731701516756,-253.86733245,9.787e-05,2]
[342318152,1731701516765,-1309.31,9.787e-05,2]
[342318153,1731701516776,-1309.31,9.787e-05,2]
[342318154,1731701516786,-1309.52708434,9.787e-05,2]
[342318155,1731701516797,-500.0,9.787e-05,2]
[342318156,1731701516807,-500.0,9.787e-05,2]
[342318157,1731701516818,-500.0,9.787e-05,2]
[342318158,1731701516828,-500.0,9.787e-05,2]
[342318159,1731701516839,-500.0,9.787e-05,2]
[342318160,1731701516848,-503.36,9.787e-05,2]
[342318161,1731701516858,-500.0,9.787e-05,2]
[342318162,1731701516868,-500.0,9.787e-05,2]
[342318163,1731701516878,-500.0,9.787e-05,2]
[342318164,1731701516887,-315.64973437,9.787e-05,2]
[342318165,1731701516899,-2522.33,9.787e-05,2]
[342318166,1731701516908,-786.31,9.787e-05,2]
[342318167,1731701516917,-2522.33,9.787e-05,2]
[342318168,1731701516927,-786.31,9.787e-05,2]
[342318169,1731701516937,-2522.33,9.787e-05,2]
[342318170,1731701516947,-786.31,9.787e-05,2]
[342318171,1731701516957,-2522.33,9.787e-05,2]
[342318172,1731701516966,-786.31,9.787e-05,2]
[342318173,1731701516976,-2522.33,9.787e-05,2]
[342318174,1731701516985,-786.43590396,9.787e-05,2]
[342318175,1731701516996,-2522.33,9.787e-05,2]
[342318176,1731701517005,-2522.33,9.787e-05,2]
[342318177,1731701517019,-2522.33,9.787e-05,2]
[342318178,1731701517029,-552.75,9.787e-05,2]
[342318179,1731701517039,-2522.33,9.787e-05,2]
[342318180,1731701517049,-552.75,9.787e-05,2]
[342318181,1731701517059,-2522.33,9.787e-05,2]
[342318182,1731701517069,-552.75,9.787e-05,2]
[342318183,1731701517078,-2522.52758777,9.787e-05,2]
[342318184,1731701517088,-552.75,9.787e-05,2]
[342318185,1731701517097,-552.76775595,9.787e-05,2]
[342318186,1731701517107,-224.014252,9.787e-05,2]
[342318187,1731701517116,-224.014252,9.787e-05,2]
[342318188,1731701517126,-224.014252,9.787e-05,2]
[342318189,1731701517135,-224.014252,9.787e-05,2]
[342318190,1731701517154,-759.33,9.787e-05,2]
[342318191,1731701517164,-759.33,9.787e-05,2]
[342318192,1731701517174,-759.33,9.787e-05,2]
[342318193,1731701517184,-224.014252,9.787e-05,2]
[342318194,1731701517195,-759.33,9.787e-05,2]
[342318195,1731701517204,-759.41724919,9.787e-05,2]
[342318196,1731701517214,-224.014252,9.787e-05,2]
[342318197,1731701517224,-224.014252,9.787e-05,2]
[342318198,1731701517236,-224.014252,9.787e-05,2]
[342318199,1731701517247,-776.53,9.787e-05,2]
[342318200,1731701517257,-776.53,9.787e-05,2]
[342318201,1731701517267,-776.53,9.787e-05,2]
[342318202,1731701517277,-776.53,9.787e-05,2]
[342318203,1731701517287,-776.53,9.787e-05,2]
[342318204,1731701517297,-776.53,9.787e-05,2]
[342318205,1731701517307,-776.53,9.787e-05,2]
[342318206,1731701517318,-776.53,9.787e-05,2]
[342318207,1731701517328,-776.53,9.787e-05,2]
[342318208,1731701517338,-776.53,9.787e-05,2]
[342318209,1731701517348,-776.53011843,9.787e-05,2]
[342318210,1731701517358,-532.93,9.787e-05,2]
[342318211,1731701517367,-532.93,9.787e-05,2]
[342318212,1731701517377,-532.93,9.787e-05,2]
[342318213,1731701517387,-532.93,9.787e-05,2]
[342318214,1731701517400,-532.98764127,9.787e-05,2]
[342318215,1731701517410,-2215.58,9.787e-05,2]
[342318216,1731701517420,-2215.58,9.787e-05,2]
[342318217,1731701517430,-2215.58,9.787e-05,2]
[342318218,1731701517439,-2215.58,9.787e-05,2]
[342318219,1731701517448,-2215.58,9.787e-05,2]
[342318220,1731701517458,-2215.58,9.787e-05,2]
[342318221,1731701517467,-2215.58,9.787e-05,2]
[342318222,1731701517477,-2215.58,9.787e-05,2]
[342318223,1731701517487,-2215.58,9.787e-05,2]
[342318224,1731701517496,-2215.58,9.787e-05,2]
[342318225,1731701517506,-2215.64756684,9.787e-05,2]
[342318226,1731701517516,-500.0,9.787e-05,2]
[342318227,1731701517526,-500.0,9.787e-05,2]
[342318228,1731701517537,-500.0,9.787e-05,2]
[342318229,1731701517547,-389.2932385,9.787e-05,2]
[342318230,1731701517557,-2072.56,9.787e-05,2]
[342318231,1731701517567,-2072.56,9.787e-05,2]
[342318232,1731701517577,-2072.56,9.787e-05,2]
[342318233,1731701517587,-2072.56,9.787e-05,2]
[342318234,1731701517597,-2072.56,9.787e-05,2]
[342318235,1731701517607,-2072.56,9.787e-05,2]
[342318236,1731701517617,-2072.56,9.787e-05,2]
[342318237,1731701517627,-2072.56,9.787e-05,2]
[342318238,1731701517636,-2072.56,9.787e-05,2]
[342318239,1731701517648,-2072.56,9.787e-05,2]
[342318240,1731701517658,-2072.73104211,9.787e-05,2]
[342318241,1731701517668,-599.35,9.787e-05,2]
[342318242,1731701517678,-599.35,9.787e-05,2]
[342318243,1731701517688,-599.35,9.787e-05,2]
[342318244,1731701517698,-599.35,9.787e-05,2]
[342318245,1731701517708,-599.35,9.787e-05,2]
[342318246,1731701517718,-599.42,9.787e-05,2]
[342318247,1731701517728,-500.0,9.787e-05,2]
[342318248,1731701517738,-1511.99,9.787e-05,2]
[342318249,1731701517748,-500.0,9.787e-05,2]
[342318250,1731701517758,-500.0,9.787e-05,2]
[342318251,1731701517768,-1511.99,9.787e-05,2]
[342318252,1731701517778,-543.45896223,9.787e-05,2]
[342318253,1731701517788,-1511.99,9.787e-05,2]
[342318254,1731701517802,-1511.99,9.787e-05,2]
[342318255,1731701517812,-1511.99,9.787e-05,2]
[342318256,1731701517822,-1511.99,9.787e-05,2]
[342318257,1731701517832,-1511.99,9.787e-05,2]
[342318258,1731701517842,-1511.99,9.787e-05,2]
[342318259,1731701517853,-1511.99,9.787e-05,2]
[342318260,1731701517863,-1511.99,9.787e-05,2]
[342318261,1731701517873,-1512.17428162,9.787e-05,2]
[342318262,1731701517883,-500.0,9.787e-05,2]
[342318263,1731701517895,-500.0,9.787e-05,2]
[342318264,1731701517905,-496.583266,9.787e-05,2]
[342318265,1731701517915,-804.32,9.787e-05,2]
[342318266,1731701517925,-804.32,9.787e-05,2]
[342318267,1731701517935,-1265.8,9.787e-05,2]
[342318268,1731701517946,-804.32,9.787e-05,2]
[342318269,1731701517958,-1265.8,9.787e-05,2]
[342318270,1731701517967,-804.32,9.787e-05,2]
[342318271,1731701517977,-1265.8,9.787e-05,2]
[342318272,1731701517987,-1265.8,9.787e-05,2]
[342318273,1731701517996,-804.32,9.787e-05,2]
[342318274,1731701518007,-1265.83684172,9.787e-05,2]
[342318275,1731701518016,-804.44,9.787e-05,2]
[342318276,1731701518026,-3279.0,9.787e-05,2]
[342318277,1731701518036,-3279.0,9.787e-05,2]
[342318278,1731701518046,-3279.0,9.787e-05,2]
[342318279,1731701518055,-3279.0,9.787e-05,2]
[342318280,1731701518065,-3279.0,9.787e-05,2]
[342318281,1731701518075,-3279.0,9.787e-05,2]
[342318282,1731701518084,-3279.0,9.787e-05,2]
[342318283,1731701518094,-3279.0,9.787e-05,2]
[342318284,1731701518104,-3279.0,9.787e-05,2]
[342318285,1731701518115,-3279.0,9.787e-05,2]
[342318286,1731701518125,-3279.03340836,9.787e-05,2]
[342318287,1731701518135,-517.95306135,9.787e-05,2]
[342318288,1731701518149,-500.0,9.787e-05,2]
[342318289,1731701518160,-500.0,9.787e-05,2]
[342318290,1731701518170,-500.0,9.787e-05,2]
[342318291,1731701518180,-438.62958404,9.787e-05,2]
[342318292,1731701518190,-500.0,9.787e-05,2]
[342318293,1731701518201,-500.0,9.787e-05,2]
[342318294,1731701518210,-260.66,9.787e-05,2]
[342318295,1731701518220,-656.91,9.787e-05,2]
[342318296,1731701518232,-656.91,9.787e-05,2]
[342318297,1731701518243,-656.91,9.787e-05,2]
[342318298,1731701518253,-656.91,9.787e-05,2]
[342318299,1731701518263,-656.99128076,9.787e-05,2]
[342318300,1731701518272,-1555.59,9.787e-05,2]
[342318301,1731701518282,-1555.59,9.787e-05,2]
[342318302,1731701518292,-1555.59,9.787e-05,2]
[342318303,1731701518301,-1555.59,9.787e-05,2]
[342318304,1731701518311,-1555.59,9.787e-05,2]
[342318305,1731701518320,-1555.59,9.787e-05,2]
[342318306,1731701518330,-1131.65746989,9.787e-05,2]
[342318307,1731701518958,-423.93253011,9.787e-05,2]
[342318308,1731701518968,-1555.59,9.787e-05,2]
[342318309,1731701518977,-322.9769508,9.787e-05,2]
[342318310,1731701518989,-1232.6130492,9.787e-05,2]
[342318311,1731701518998,-391.3868008,9.787e-05,2]
[342318312,1731701519009,-1164.2031992,9.787e-05,2]
[342318313,1731701519018,-638.3068008,9.787e-05,2]
[342318314,1731701519044,-611.86307641,9.786e-05,2]
[342318315,1731701519055,-799.86692359,9.786e-05,2]
[342318316,1731701519066,-917.31091199,9.787e-05,2]
[342318317,1731701519075,-2192.86,9.787e-05,2]
[342318318,1731701519084,-2192.86,9.787e-05,2]
[342318319,1731701519093,-328.28924182,9.787e-05,2]
[342318320,1731701519105,-902.82192,9.787e-05,2]
[342318321,1731701519116,-961.74883818,9.787e-05,2]
[342318322,1731701519125,-2192.86,9.787e-05,2]
[342318323,1731701519134,-2192.91106224,9.787e-05,2]
[342318324,1731701519146,-677.48,9.787e-05,2]
[342318325,1731701519160,-677.48,9.787e-05,2]
[342318326,1731701519169,-677.48,9.787e-05,2]
[342318327,1731701519179,-677.48,9.787e-05,2]
[342318328,1731701519189,-677.48,9.787e-05,2]
[342318329,1731701519198,-677.48,9.787e-05,2]
[342318330,1731701519207,-677.48,9.787e-05,2]
[342318331,1731701519216,-677.48,9.787e-05,2]
[342318332,1731701519225,-677.48,9.787e-05,2]
[342318333,1731701519236,-677.48,9.787e-05,2]
[342318334,1731701519245,-677.53065619,9.787e-05,2]
[342318335,1731701519255,-2043.12,9.787e-05,2]
[342318336,1731701519264,-2043.12,9.787e-05,2]
[342318337,1731701519273,-711.26157141,9.787e-05,2]
[342318338,1731701519284,-1331.85842859,9.787e-05,2]
[342318339,1731701519293,-809.11398515,9.787e-05,2]
[342318340,1731701519314,-58.32601485,9.787e-05,2]
[342318341,1731701519323,-1158.23398515,9.787e-05,2]
[342318342,1731701519334,-403.788,9.787e-05,2]
[342318343,1731701519345,-451.51106,9.787e-05,2]
[342318344,1731701519356,-29.58695485,9.787e-05,2]
[342318345,1731701519366,-2043.12,9.787e-05,2]
[342318346,1731701519376,-867.44,9.787e-05,2]
[342318347,1731701519386,-181.51890767,9.787e-05,2]
[342318348,1731701519696,-1800.9,9.68e-05,2]
[342318349,1731701519707,-2719.32456776,9.68e-05,2]
[342318350,1731701519726,-479.77543224,9.68e-05,2]
[342318351,1731701519736,-1411.73,9.786e-05,2]
[342318352,1731701519746,-1372.79456776,9.786e-05,2]
[342318353,1731701519757,-38.93543224,9.786e-05,2]
[342318354,1731701519766,-297.0394223,9.786e-05,2]
[342318355,1731701519778,-1114.6905777,9.786e-05,2]
[342318356,1731701519787,-1411.73,9.786e-05,2]
[342318357,1731701519796,-1411.73,9.786e-05,2]
[342318358,1731701519807,-1861.60109233,9.787e-05,2]
[342318359,1731701519816,-867.44,9.787e-05,2]
[342318360,1731701519826,-1086.32483672,9.787e-05,2]
[342318361,1731701519837,-732.56227088,9.787e-05,2]
[342318362,1731701519854,-224.2328924,9.787e-05,2]
[342318363,1731701519863,-867.44,9.787e-05,2]
[342318364,1731701519872,-1503.73295459,9.787e-05,2]
[342318365,1731701519884,-297.75698508,9.787e-05,2]
[342318366,1731701519898,-241.63006033,9.787e-05,2]
[342318367,1731701519907,-867.60142184,9.787e-05,2]
[342318368,1731701519917,-2043.12,9.787e-05,2]